{"text_format":"1","workbook":"xlsx","n_sheets":3,"sheets":["Data","Listas","CargueMasivodeCuentas"],"not_rendered":{"charts":0,"images":0,"macros":1,"external_links":0,"defined_names":3,"comments":1,"pivot_tables":0},"unopened":[],"bounds":{"document_bytes":16777216,"sheet_cells":100000,"rows_first":2000,"rows_last":500,"rows_between":2000,"halvings":0,"cell_chars":16384,"cell_head_chars":4096},"cells_cut":0,"cells_raw":0,"read":"whole","date_system":"1900"}

{"sheet":"Data","index":0,"n_rows":1,"n_cols":17,"rows_kept":1,"cut":false,"hidden":true,"merged":[]}
["Radicado","Tipo de Uso","MZ_BQ_INT","Apto_Ofc_SC_Macro","Carga Instalada","Tipo de Medidor","Medidor DobleCanal","Suministrado Por","Serie","Marca","Modelo","Nombre","Apellido","Tipo Documento","Número Documento","Email","Número Celular"]

{"sheet":"Listas","index":1,"n_rows":4,"n_cols":1,"rows_kept":4,"cut":false,"hidden":true,"merged":[]}
["CC"]
["CE"]
["Pasaporte"]
["Nit"]

{"sheet":"CargueMasivodeCuentas","index":2,"n_rows":13,"n_cols":17,"rows_kept":13,"cut":false,"hidden":false,"merged":[[0,0,0,16],[2,3,2,4],[2,5,2,11]]}
["DETALLE DE LOCALIZACIONES"]
[]
["FACTIBILIDAD",null,null,"Nombre del Proyecto"]
[]
["Tipo de Uso","TOTAL","Monofásico","Bifásico","3X20X80","3X50X150","GM MT","GM BT","Macro",null,"N° Cuentas"]
["Residencial",{"$f":"COUNTIF(CargueMasivodeCuentas!$B$13:$B$2100,A6)","v":0},{"$f":"COUNTIFS(CargueMasivodeCuentas!$B$14:$B$2100,$A6,CargueMasivodeCuentas!$F$14:$F$2100,C$5)","v":0},{"$f":"COUNTIFS(CargueMasivodeCuentas!$B$14:$B$2100,$A6,CargueMasivodeCuentas!$F$14:$F$2100,D$5)","v":0},{"$f":"COUNTIFS(CargueMasivodeCuentas!$B$14:$B$2100,$A6,CargueMasivodeCuentas!$F$14:$F$2100,E$5)","v":0},{"$f":"COUNTIFS(CargueMasivodeCuentas!$B$14:$B$2100,$A6,CargueMasivodeCuentas!$F$14:$F$2100,F$5)","v":0},{"$f":"COUNTIFS(CargueMasivodeCuentas!$B$14:$B$2100,$A6,CargueMasivodeCuentas!$F$14:$F$2100,G$5)","v":0},{"$f":"COUNTIFS(CargueMasivodeCuentas!$B$14:$B$2100,$A6,CargueMasivodeCuentas!$F$14:$F$2100,H$5)","v":0},{"$f":"COUNTIFS(CargueMasivodeCuentas!$B$14:$B$2100,$A6,CargueMasivodeCuentas!$F$14:$F$2100,I$5)","v":0},null,{"$f":"SUM(C11:I11)","v":0}]
["Comercial",{"$f":"COUNTIF(CargueMasivodeCuentas!$B$13:$B$2100,A7)","v":0},{"$f":"COUNTIFS(CargueMasivodeCuentas!$B$14:$B$2100,$A7,CargueMasivodeCuentas!$F$14:$F$2100,C$5)","v":0},{"$f":"COUNTIFS(CargueMasivodeCuentas!$B$14:$B$2100,$A7,CargueMasivodeCuentas!$F$14:$F$2100,D$5)","v":0},{"$f":"COUNTIFS(CargueMasivodeCuentas!$B$14:$B$2100,$A7,CargueMasivodeCuentas!$F$14:$F$2100,E$5)","v":0},{"$f":"COUNTIFS(CargueMasivodeCuentas!$B$14:$B$2100,$A7,CargueMasivodeCuentas!$F$14:$F$2100,F$5)","v":0},{"$f":"COUNTIFS(CargueMasivodeCuentas!$B$14:$B$2100,$A7,CargueMasivodeCuentas!$F$14:$F$2100,G$5)","v":0},{"$f":"COUNTIFS(CargueMasivodeCuentas!$B$14:$B$2100,$A7,CargueMasivodeCuentas!$F$14:$F$2100,H$5)","v":0},{"$f":"COUNTIFS(CargueMasivodeCuentas!$B$14:$B$2100,$A7,CargueMasivodeCuentas!$F$14:$F$2100,I$5)","v":0}]
["Industrial",{"$f":"COUNTIF(CargueMasivodeCuentas!$B$13:$B$2100,A8)","v":0},{"$f":"COUNTIFS(CargueMasivodeCuentas!$B$14:$B$2100,$A8,CargueMasivodeCuentas!$F$14:$F$2100,C$5)","v":0},{"$f":"COUNTIFS(CargueMasivodeCuentas!$B$14:$B$2100,$A8,CargueMasivodeCuentas!$F$14:$F$2100,D$5)","v":0},{"$f":"COUNTIFS(CargueMasivodeCuentas!$B$14:$B$2100,$A8,CargueMasivodeCuentas!$F$14:$F$2100,E$5)","v":0},{"$f":"COUNTIFS(CargueMasivodeCuentas!$B$14:$B$2100,$A8,CargueMasivodeCuentas!$F$14:$F$2100,F$5)","v":0},{"$f":"COUNTIFS(CargueMasivodeCuentas!$B$14:$B$2100,$A8,CargueMasivodeCuentas!$F$14:$F$2100,G$5)","v":0},{"$f":"COUNTIFS(CargueMasivodeCuentas!$B$14:$B$2100,$A8,CargueMasivodeCuentas!$F$14:$F$2100,H$5)","v":0},{"$f":"COUNTIFS(CargueMasivodeCuentas!$B$14:$B$2100,$A8,CargueMasivodeCuentas!$F$14:$F$2100,I$5)","v":0},null,"Total Carga"]
["Oficial",{"$f":"COUNTIF(CargueMasivodeCuentas!$B$13:$B$2100,A9)","v":0},{"$f":"COUNTIFS(CargueMasivodeCuentas!$B$14:$B$2100,$A9,CargueMasivodeCuentas!$F$14:$F$2100,C$5)","v":0},{"$f":"COUNTIFS(CargueMasivodeCuentas!$B$14:$B$2100,$A9,CargueMasivodeCuentas!$F$14:$F$2100,D$5)","v":0},{"$f":"COUNTIFS(CargueMasivodeCuentas!$B$14:$B$2100,$A9,CargueMasivodeCuentas!$F$14:$F$2100,E$5)","v":0},{"$f":"COUNTIFS(CargueMasivodeCuentas!$B$14:$B$2100,$A9,CargueMasivodeCuentas!$F$14:$F$2100,F$5)","v":0},{"$f":"COUNTIFS(CargueMasivodeCuentas!$B$14:$B$2100,$A9,CargueMasivodeCuentas!$F$14:$F$2100,G$5)","v":0},{"$f":"COUNTIFS(CargueMasivodeCuentas!$B$14:$B$2100,$A9,CargueMasivodeCuentas!$F$14:$F$2100,H$5)","v":0},{"$f":"COUNTIFS(CargueMasivodeCuentas!$B$14:$B$2100,$A9,CargueMasivodeCuentas!$F$14:$F$2100,I$5)","v":0},null,{"$f":"SUM(D14:E2100)","v":0}]
["Provisional de Obra",{"$f":"COUNTIF(CargueMasivodeCuentas!$B$13:$B$2100,A10)","v":0},{"$f":"COUNTIFS(CargueMasivodeCuentas!$B$14:$B$2100,$A10,CargueMasivodeCuentas!$F$14:$F$2100,C$5)","v":0},{"$f":"COUNTIFS(CargueMasivodeCuentas!$B$14:$B$2100,$A10,CargueMasivodeCuentas!$F$14:$F$2100,D$5)","v":0},{"$f":"COUNTIFS(CargueMasivodeCuentas!$B$14:$B$2100,$A10,CargueMasivodeCuentas!$F$14:$F$2100,E$5)","v":0},{"$f":"COUNTIFS(CargueMasivodeCuentas!$B$14:$B$2100,$A10,CargueMasivodeCuentas!$F$14:$F$2100,F$5)","v":0},{"$f":"COUNTIFS(CargueMasivodeCuentas!$B$14:$B$2100,$A10,CargueMasivodeCuentas!$F$14:$F$2100,G$5)","v":0},{"$f":"COUNTIFS(CargueMasivodeCuentas!$B$14:$B$2100,$A10,CargueMasivodeCuentas!$F$14:$F$2100,H$5)","v":0},{"$f":"COUNTIFS(CargueMasivodeCuentas!$B$14:$B$2100,$A10,CargueMasivodeCuentas!$F$14:$F$2100,I$5)","v":0}]
["Total",{"$f":"SUM(B6:B10)","v":0},{"$f":"SUM(C6:C10)","v":0},0,0,0,0,0,0]
[]
["RADICADO","Tipo de Uso","MZ_BQ_INT","Apto_Ofc_SC_Macro","Carga Instalada","Tipo de Medidor","Medidor DobleCanal","Suministrado Por","Serie","Marca","Modelo","Nombre o Razón Social","Apellido","Tipo Documento","Número Documento","Email","Número Celular"]